Workbook

Sheet Рахунок-фактура
B1: Назва компанії
B2: Вулиця, будинок, офіс | D2: Т.: Номер телефону | F2: Електронна пошта
B3: Місто, область, поштовий індекс | D3: Ф.: Номер факсу | F3: Веб-сайт
B4: Одержувач рахунка: | C4: =IFERROR(VLOOKUP(VLOOKUP(ДіапазонНомерівРахунків,Рахунки_фактуриОсновний[],2,FALSE),СписокКлієнтів[],3,TRUE),"") -> Contoso, Ltd | D4: ="Телефон: "&IFERROR(VLOOKUP(VLOOKUP(ДіапазонНомерівРахунків,Рахунки_фактуриОсновний[],2,FALSE),СписокКлієнтів[],9,FALSE),"") -> Телефон: (432) 555-01-89 | F4: № рахунка: | G4: 3-456-2
B5: Адреса: | C5: =IFERROR(IF((VLOOKUP(VLOOKUP(ДіапазонНомерівРахунків,Рахунки_фактуриОсновний[],2,FALSE),СписокКлієнтів[],5,FALSE))="","",(VLOOKUP(VLOOKUP(ДіапазонНомерівРахунків,Рахунки_фактуриОсновний[],2,FALSE),СписокКлієнтів[],5,FALSE))),"") -> вул. Кутова, 567 | D5: ="Факс: "&IFERROR(VLOOKUP(VLOOKUP(ДіапазонНомерівРахунків,Рахунки_фактуриОсновний[],2,FALSE),СписокКлієнтів[],11,FALSE),"") -> Факс: (432) 555-01-23 | F5: Дата виставлення рахунка: | G5: =IFERROR(IF(VLOOKUP(ДіапазонНомерівРахунків,Рахунки_фактуриОсновний[],3,FALSE)="","",VLOOKUP(ДіапазонНомерівРахунків,Рахунки_фактуриОсновний[],3,FALSE)),"") -> 4368600.00%
C6: =IFERROR(VLOOKUP(VLOOKUP(ДіапазонНомерівРахунків,Рахунки_фактуриОсновний[],2,FALSE),СписокКлієнтів[],6,FALSE)&", "& VLOOKUP(VLOOKUP(G4,Рахунки_фактуриОсновний[],2,FALSE),СписокКлієнтів[],7,FALSE)&" "&VLOOKUP(VLOOKUP(G4,Рахунки_фактуриОсновний[],2,FALSE),СписокКлієнтів[],8,FALSE),"") -> Миколаїв, Миколаївська обл. 098765 | D6: ="Електронна пошта: "&IFERROR(VLOOKUP(VLOOKUP(ДіапазонНомерівРахунків,Рахунки_фактуриОсновний[],2,FALSE),СписокКлієнтів[],10,FALSE),"") -> Електронна пошта: perevirka@example.com
B7: ="Invoice For: "&IFERROR(VLOOKUP(ДіапазонНомерівРахунків,Рахунки_фактуриОсновний[],4),"") -> Invoice For: Проект 2
B8: № позиції | C8: Опис | D8: К-сть | E8: Ціна за одиницю | F8: Знижка | G8: Ціна
B9: =IFERROR(INDEX(Відомостіпрорахунокфактуру[],SMALL(IF(Відомостіпрорахунокфактуру[№ рахунка]=ДіапазонНомерівРахунків,ROW(Відомостіпрорахунокфактуру[])-ROW(Відомостіпрорахунокфактуру[#Headers])), ROW(1:1)), MATCH($B$8, Відомостіпрорахунокфактуру[#Headers], 0)),"") -> Z4567 | C9: =IFERROR(INDEX(Відомостіпрорахунокфактуру[],SMALL(IF(Відомостіпрорахунокфактуру[№ рахунка]=ДіапазонНомерівРахунків,ROW(Відомостіпрорахунокфактуру[])-ROW(Відомостіпрорахунокфактуру[#Headers])), ROW(1:1)), MATCH($C$8, Відомостіпрорахунокфактуру[#Headers], 0)),"") -> Дані 1 рахунка-фактури 3-456-2 | D9: =IFERROR(INDEX(Відомостіпрорахунокфактуру[],SMALL(IF(Відомостіпрорахунокфактуру[№ рахунка]=ДіапазонНомерівРахунків,ROW(Відомостіпрорахунокфактуру[])-ROW(Відомостіпрорахунокфактуру[#Headers])), ROW(1:1)), MATCH($D$8, Відомостіпрорахунокфактуру[#Headers], 0)),"") -> 39 | E9: =IFERROR(INDEX(Відомостіпрорахунокфактуру[],SMALL(IF(Відомостіпрорахунокфактуру[№ рахунка]=ДіапазонНомерівРахунків,ROW(Відомостіпрорахунокфактуру[])-ROW(Відомостіпрорахунокфактуру[#Headers])), ROW(1:1)), MATCH($E$8, Відомостіпрорахунокфактуру[#Headers], 0)),"") -> 5.00₴ | F9: =IFERROR(INDEX(Відомостіпрорахунокфактуру[],SMALL(IF(Відомостіпрорахунокфактуру[№ рахунка]=ДіапазонНомерівРахунків,ROW(Відомостіпрорахунокфактуру[])-ROW(Відомостіпрорахунокфактуру[#Headers])), ROW(1:1)), MATCH($F$8, Відомостіпрорахунокфактуру[#Headers], 0)),"") -> 0 | G9: =IFERROR((D9*E9)-F9,"") -> 195.00₴
B10: =IFERROR(INDEX(Відомостіпрорахунокфактуру[],SMALL(IF(Відомостіпрорахунокфактуру[№ рахунка]=ДіапазонНомерівРахунків,ROW(Відомостіпрорахунокфактуру[])-ROW(Відомостіпрорахунокфактуру[#Headers])), ROW(2:2)), MATCH($B$8, Відомостіпрорахунокфактуру[#Headers], 0)),"") -> Z4568 | C10: =IFERROR(INDEX(Відомостіпрорахунокфактуру[],SMALL(IF(Відомостіпрорахунокфактуру[№ рахунка]=ДіапазонНомерівРахунків,ROW(Відомостіпрорахунокфактуру[])-ROW(Відомостіпрорахунокфактуру[#Headers])), ROW(2:2)), MATCH($C$8, Відомостіпрорахунокфактуру[#Headers], 0)),"") -> Дані 2 рахунка-фактури 3-456-2 | D10: =IFERROR(INDEX(Відомостіпрорахунокфактуру[],SMALL(IF(Відомостіпрорахунокфактуру[№ рахунка]=ДіапазонНомерівРахунків,ROW(Відомостіпрорахунокфактуру[])-ROW(Відомостіпрорахунокфактуру[#Headers])), ROW(2:2)), MATCH($D$8, Відомостіпрорахунокфактуру[#Headers], 0)),"") -> 40 | E10: =IFERROR(INDEX(Відомостіпрорахунокфактуру[],SMALL(IF(Відомостіпрорахунокфактуру[№ рахунка]=ДіапазонНомерівРахунків,ROW(Відомостіпрорахунокфактуру[])-ROW(Відомостіпрорахунокфактуру[#Headers])), ROW(2:2)), MATCH($E$8, Відомостіпрорахунокфактуру[#Headers], 0)),"") -> 4.00₴ | F10: =IFERROR(INDEX(Відомостіпрорахунокфактуру[],SMALL(IF(Відомостіпрорахунокфактуру[№ рахунка]=ДіапазонНомерівРахунків,ROW(Відомостіпрорахунокфактуру[])-ROW(Відомостіпрорахунокфактуру[#Headers])), ROW(2:2)), MATCH($F$8, Відомостіпрорахунокфактуру[#Headers], 0)),"") -> 5.00₴ | G10: 155.00₴
B11: =IFERROR(INDEX(Відомостіпрорахунокфактуру[],SMALL(IF(Відомостіпрорахунокфактуру[№ рахунка]=ДіапазонНомерівРахунків,ROW(Відомостіпрорахунокфактуру[])-ROW(Відомостіпрорахунокфактуру[#Headers])), ROW(3:3)), MATCH($B$8, Відомостіпрорахунокфактуру[#Headers], 0)),"") -> Z4569 | C11: =IFERROR(INDEX(Відомостіпрорахунокфактуру[],SMALL(IF(Відомостіпрорахунокфактуру[№ рахунка]=ДіапазонНомерівРахунків,ROW(Відомостіпрорахунокфактуру[])-ROW(Відомостіпрорахунокфактуру[#Headers])), ROW(3:3)), MATCH($C$8, Відомостіпрорахунокфактуру[#Headers], 0)),"") -> Дані 3 рахунка-фактури 3-456-2 | D11: =IFERROR(INDEX(Відомостіпрорахунокфактуру[],SMALL(IF(Відомостіпрорахунокфактуру[№ рахунка]=ДіапазонНомерівРахунків,ROW(Відомостіпрорахунокфактуру[])-ROW(Відомостіпрорахунокфактуру[#Headers])), ROW(3:3)), MATCH($D$8, Відомостіпрорахунокфактуру[#Headers], 0)),"") -> 30 | E11: =IFERROR(INDEX(Відомостіпрорахунокфактуру[],SMALL(IF(Відомостіпрорахунокфактуру[№ рахунка]=ДіапазонНомерівРахунків,ROW(Відомостіпрорахунокфактуру[])-ROW(Відомостіпрорахунокфактуру[#Headers])), ROW(3:3)), MATCH($E$8, Відомостіпрорахунокфактуру[#Headers], 0)),"") -> 6.00₴ | F11: =IFERROR(INDEX(Відомостіпрорахунокфактуру[],SMALL(IF(Відомостіпрорахунокфактуру[№ рахунка]=ДіапазонНомерівРахунків,ROW(Відомостіпрорахунокфактуру[])-ROW(Відомостіпрорахунокфактуру[#Headers])), ROW(3:3)), MATCH($F$8, Відомостіпрорахунокфактуру[#Headers], 0)),"") -> 7.00₴ | G11: 173.00₴
B12: =IFERROR(INDEX(Відомостіпрорахунокфактуру[],SMALL(IF(Відомостіпрорахунокфактуру[№ рахунка]=ДіапазонНомерівРахунків,ROW(Відомостіпрорахунокфактуру[])-ROW(Відомостіпрорахунокфактуру[#Headers])), ROW(4:4)), MATCH($B$8, Відомостіпрорахунокфактуру[#Headers], 0)),"") -> Z4570 | C12: =IFERROR(INDEX(Відомостіпрорахунокфактуру[],SMALL(IF(Відомостіпрорахунокфактуру[№ рахунка]=ДіапазонНомерівРахунків,ROW(Відомостіпрорахунокфактуру[])-ROW(Відомостіпрорахунокфактуру[#Headers])), ROW(4:4)), MATCH($C$8, Відомостіпрорахунокфактуру[#Headers], 0)),"") -> Дані 4 рахунка-фактури 3-456-2 | D12: =IFERROR(INDEX(Відомостіпрорахунокфактуру[],SMALL(IF(Відомостіпрорахунокфактуру[№ рахунка]=ДіапазонНомерівРахунків,ROW(Відомостіпрорахунокфактуру[])-ROW(Відомостіпрорахунокфактуру[#Headers])), ROW(4:4)), MATCH($D$8, Відомостіпрорахунокфактуру[#Headers], 0)),"") -> 40 | E12: =IFERROR(INDEX(Відомостіпрорахунокфактуру[],SMALL(IF(Відомостіпрорахунокфактуру[№ рахунка]=ДіапазонНомерівРахунків,ROW(Відомостіпрорахунокфактуру[])-ROW(Відомостіпрорахунокфактуру[#Headers])), ROW(4:4)), MATCH($E$8, Відомостіпрорахунокфактуру[#Headers], 0)),"") -> 7.00₴ | F12: =IFERROR(INDEX(Відомостіпрорахунокфактуру[],SMALL(IF(Відомостіпрорахунокфактуру[№ рахунка]=ДіапазонНомерівРахунків,ROW(Відомостіпрорахунокфактуру[])-ROW(Відомостіпрорахунокфактуру[#Headers])), ROW(4:4)), MATCH($F$8, Відомостіпрорахунокфактуру[#Headers], 0)),"") -> 0 | G12: 280.00₴
B13: =IFERROR(INDEX(Відомостіпрорахунокфактуру[],SMALL(IF(Відомостіпрорахунокфактуру[№ рахунка]=ДіапазонНомерівРахунків,ROW(Відомостіпрорахунокфактуру[])-ROW(Відомостіпрорахунокфактуру[#Headers])), ROW(5:5)), MATCH($B$8, Відомостіпрорахунокфактуру[#Headers], 0)),"") -> Z4571 | C13: =IFERROR(INDEX(Відомостіпрорахунокфактуру[],SMALL(IF(Відомостіпрорахунокфактуру[№ рахунка]=ДіапазонНомерівРахунків,ROW(Відомостіпрорахунокфактуру[])-ROW(Відомостіпрорахунокфактуру[#Headers])), ROW(5:5)), MATCH($C$8, Відомостіпрорахунокфактуру[#Headers], 0)),"") -> Дані 5 рахунка-фактури 3-456-2 | D13: =IFERROR(INDEX(Відомостіпрорахунокфактуру[],SMALL(IF(Відомостіпрорахунокфактуру[№ рахунка]=ДіапазонНомерівРахунків,ROW(Відомостіпрорахунокфактуру[])-ROW(Відомостіпрорахунокфактуру[#Headers])), ROW(5:5)), MATCH($D$8, Відомостіпрорахунокфактуру[#Headers], 0)),"") -> 10 | E13: =IFERROR(INDEX(Відомостіпрорахунокфактуру[],SMALL(IF(Відомостіпрорахунокфактуру[№ рахунка]=ДіапазонНомерівРахунків,ROW(Відомостіпрорахунокфактуру[])-ROW(Відомостіпрорахунокфактуру[#Headers])), ROW(5:5)), MATCH($E$8, Відомостіпрорахунокфактуру[#Headers], 0)),"") -> 4.00₴ | F13: =IFERROR(INDEX(Відомостіпрорахунокфактуру[],SMALL(IF(Відомостіпрорахунокфактуру[№ рахунка]=ДіапазонНомерівРахунків,ROW(Відомостіпрорахунокфактуру[])-ROW(Відомостіпрорахунокфактуру[#Headers])), ROW(5:5)), MATCH($F$8, Відомостіпрорахунокфактуру[#Headers], 0)),"") -> 0 | G13: 40.00₴
B14: =IFERROR(INDEX(Відомостіпрорахунокфактуру[],SMALL(IF(Відомостіпрорахунокфактуру[№ рахунка]=ДіапазонНомерівРахунків,ROW(Відомостіпрорахунокфактуру[])-ROW(Відомостіпрорахунокфактуру[#Headers])), ROW(6:6)), MATCH($B$8, Відомостіпрорахунокфактуру[#Headers], 0)),"") -> Z4572 | C14: =IFERROR(INDEX(Відомостіпрорахунокфактуру[],SMALL(IF(Відомостіпрорахунокфактуру[№ рахунка]=ДіапазонНомерівРахунків,ROW(Відомостіпрорахунокфактуру[])-ROW(Відомостіпрорахунокфактуру[#Headers])), ROW(6:6)), MATCH($C$8, Відомостіпрорахунокфактуру[#Headers], 0)),"") -> Дані 6 рахунка-фактури 3-456-2 | D14: =IFERROR(INDEX(Відомостіпрорахунокфактуру[],SMALL(IF(Відомостіпрорахунокфактуру[№ рахунка]=ДіапазонНомерівРахунків,ROW(Відомостіпрорахунокфактуру[])-ROW(Відомостіпрорахунокфактуру[#Headers])), ROW(6:6)), MATCH($D$8, Відомостіпрорахунокфактуру[#Headers], 0)),"") -> 5 | E14: =IFERROR(INDEX(Відомостіпрорахунокфактуру[],SMALL(IF(Відомостіпрорахунокфактуру[№ рахунка]=ДіапазонНомерівРахунків,ROW(Відомостіпрорахунокфактуру[])-ROW(Відомостіпрорахунокфактуру[#Headers])), ROW(6:6)), MATCH($E$8, Відомостіпрорахунокфактуру[#Headers], 0)),"") -> 8.00₴ | F14: =IFERROR(INDEX(Відомостіпрорахунокфактуру[],SMALL(IF(Відомостіпрорахунокфактуру[№ рахунка]=ДіапазонНомерівРахунків,ROW(Відомостіпрорахунокфактуру[])-ROW(Відомостіпрорахунокфактуру[#Headers])), ROW(6:6)), MATCH($F$8, Відомостіпрорахунокфактуру[#Headers], 0)),"") -> 0 | G14: 40.00₴
B15: =IFERROR(INDEX(Відомостіпрорахунокфактуру[],SMALL(IF(Відомостіпрорахунокфактуру[№ рахунка]=ДіапазонНомерівРахунків,ROW(Відомостіпрорахунокфактуру[])-ROW(Відомостіпрорахунокфактуру[#Headers])), ROW(7:7)), MATCH($B$8, Відомостіпрорахунокфактуру[#Headers], 0)),"") -> Z4573 | C15: =IFERROR(INDEX(Відомостіпрорахунокфактуру[],SMALL(IF(Відомостіпрорахунокфактуру[№ рахунка]=ДіапазонНомерівРахунків,ROW(Відомостіпрорахунокфактуру[])-ROW(Відомостіпрорахунокфактуру[#Headers])), ROW(7:7)), MATCH($C$8, Відомостіпрорахунокфактуру[#Headers], 0)),"") -> Дані 7 рахунка-фактури 3-456-2 | D15: =IFERROR(INDEX(Відомостіпрорахунокфактуру[],SMALL(IF(Відомостіпрорахунокфактуру[№ рахунка]=ДіапазонНомерівРахунків,ROW(Відомостіпрорахунокфактуру[])-ROW(Відомостіпрорахунокфактуру[#Headers])), ROW(7:7)), MATCH($D$8, Відомостіпрорахунокфактуру[#Headers], 0)),"") -> 70 | E15: =IFERROR(INDEX(Відомостіпрорахунокфактуру[],SMALL(IF(Відомостіпрорахунокфактуру[№ рахунка]=ДіапазонНомерівРахунків,ROW(Відомостіпрорахунокфактуру[])-ROW(Відомостіпрорахунокфактуру[#Headers])), ROW(7:7)), MATCH($E$8, Відомостіпрорахунокфактуру[#Headers], 0)),"") -> 6.00₴ | F15: =IFERROR(INDEX(Відомостіпрорахунокфактуру[],SMALL(IF(Відомостіпрорахунокфактуру[№ рахунка]=ДіапазонНомерівРахунків,ROW(Відомостіпрорахунокфактуру[])-ROW(Відомостіпрорахунокфактуру[#Headers])), ROW(7:7)), MATCH($F$8, Відомостіпрорахунокфактуру[#Headers], 0)),"") -> 0 | G15: 420.00₴
B16: =IFERROR(INDEX(Відомостіпрорахунокфактуру[],SMALL(IF(Відомостіпрорахунокфактуру[№ рахунка]=ДіапазонНомерівРахунків,ROW(Відомостіпрорахунокфактуру[])-ROW(Відомостіпрорахунокфактуру[#Headers])), ROW(8:8)), MATCH($B$8, Відомостіпрорахунокфактуру[#Headers], 0)),"") -> Z4574 | C16: =IFERROR(INDEX(Відомостіпрорахунокфактуру[],SMALL(IF(Відомостіпрорахунокфактуру[№ рахунка]=ДіапазонНомерівРахунків,ROW(Відомостіпрорахунокфактуру[])-ROW(Відомостіпрорахунокфактуру[#Headers])), ROW(8:8)), MATCH($C$8, Відомостіпрорахунокфактуру[#Headers], 0)),"") -> Дані 8 рахунка-фактури 3-456-2 | D16: =IFERROR(INDEX(Відомостіпрорахунокфактуру[],SMALL(IF(Відомостіпрорахунокфактуру[№ рахунка]=ДіапазонНомерівРахунків,ROW(Відомостіпрорахунокфактуру[])-ROW(Відомостіпрорахунокфактуру[#Headers])), ROW(8:8)), MATCH($D$8, Відомостіпрорахунокфактуру[#Headers], 0)),"") -> 25 | E16: =IFERROR(INDEX(Відомостіпрорахунокфактуру[],SMALL(IF(Відомостіпрорахунокфактуру[№ рахунка]=ДіапазонНомерівРахунків,ROW(Відомостіпрорахунокфактуру[])-ROW(Відомостіпрорахунокфактуру[#Headers])), ROW(8:8)), MATCH($E$8, Відомостіпрорахунокфактуру[#Headers], 0)),"") -> 4.00₴ | F16: =IFERROR(INDEX(Відомостіпрорахунокфактуру[],SMALL(IF(Відомостіпрорахунокфактуру[№ рахунка]=ДіапазонНомерівРахунків,ROW(Відомостіпрорахунокфактуру[])-ROW(Відомостіпрорахунокфактуру[#Headers])), ROW(8:8)), MATCH($F$8, Відомостіпрорахунокфактуру[#Headers], 0)),"") -> 0 | G16: 100.00₴
B17: =IFERROR(INDEX(Відомостіпрорахунокфактуру[],SMALL(IF(Відомостіпрорахунокфактуру[№ рахунка]=ДіапазонНомерівРахунків,ROW(Відомостіпрорахунокфактуру[])-ROW(Відомостіпрорахунокфактуру[#Headers])), ROW(9:9)), MATCH($B$8, Відомостіпрорахунокфактуру[#Headers], 0)),"") -> Z4575 | C17: =IFERROR(INDEX(Відомостіпрорахунокфактуру[],SMALL(IF(Відомостіпрорахунокфактуру[№ рахунка]=ДіапазонНомерівРахунків,ROW(Відомостіпрорахунокфактуру[])-ROW(Відомостіпрорахунокфактуру[#Headers])), ROW(9:9)), MATCH($C$8, Відомостіпрорахунокфактуру[#Headers], 0)),"") -> Дані 9 рахунка-фактури 3-456-2 | D17: =IFERROR(INDEX(Відомостіпрорахунокфактуру[],SMALL(IF(Відомостіпрорахунокфактуру[№ рахунка]=ДіапазонНомерівРахунків,ROW(Відомостіпрорахунокфактуру[])-ROW(Відомостіпрорахунокфактуру[#Headers])), ROW(9:9)), MATCH($D$8, Відомостіпрорахунокфактуру[#Headers], 0)),"") -> 5 | E17: =IFERROR(INDEX(Відомостіпрорахунокфактуру[],SMALL(IF(Відомостіпрорахунокфактуру[№ рахунка]=ДіапазонНомерівРахунків,ROW(Відомостіпрорахунокфактуру[])-ROW(Відомостіпрорахунокфактуру[#Headers])), ROW(9:9)), MATCH($E$8, Відомостіпрорахунокфактуру[#Headers], 0)),"") -> 7.00₴ | F17: =IFERROR(INDEX(Відомостіпрорахунокфактуру[],SMALL(IF(Відомостіпрорахунокфактуру[№ рахунка]=ДіапазонНомерівРахунків,ROW(Відомостіпрорахунокфактуру[])-ROW(Відомостіпрорахунокфактуру[#Headers])), ROW(9:9)), MATCH($F$8, Відомостіпрорахунокфактуру[#Headers], 0)),"") -> 3.00₴ | G17: 32.00₴
B18: =IFERROR(INDEX(Відомостіпрорахунокфактуру[],SMALL(IF(Відомостіпрорахунокфактуру[№ рахунка]=ДіапазонНомерівРахунків,ROW(Відомостіпрорахунокфактуру[])-ROW(Відомостіпрорахунокфактуру[#Headers])), ROW(10:10)), MATCH($B$8, Відомостіпрорахунокфактуру[#Headers], 0)),"") -> Z4576 | C18: =IFERROR(INDEX(Відомостіпрорахунокфактуру[],SMALL(IF(Відомостіпрорахунокфактуру[№ рахунка]=ДіапазонНомерівРахунків,ROW(Відомостіпрорахунокфактуру[])-ROW(Відомостіпрорахунокфактуру[#Headers])), ROW(10:10)), MATCH($C$8, Відомостіпрорахунокфактуру[#Headers], 0)),"") -> Дані 10 рахунка-фактури 3-456-2 | D18: =IFERROR(INDEX(Відомостіпрорахунокфактуру[],SMALL(IF(Відомостіпрорахунокфактуру[№ рахунка]=ДіапазонНомерівРахунків,ROW(Відомостіпрорахунокфактуру[])-ROW(Відомостіпрорахунокфактуру[#Headers])), ROW(10:10)), MATCH($D$8, Відомостіпрорахунокфактуру[#Headers], 0)),"") -> 80 | E18: =IFERROR(INDEX(Відомостіпрорахунокфактуру[],SMALL(IF(Відомостіпрорахунокфактуру[№ рахунка]=ДіапазонНомерівРахунків,ROW(Відомостіпрорахунокфактуру[])-ROW(Відомостіпрорахунокфактуру[#Headers])), ROW(10:10)), MATCH($E$8, Відомостіпрорахунокфактуру[#Headers], 0)),"") -> 1.00₴ | F18: =IFERROR(INDEX(Відомостіпрорахунокфактуру[],SMALL(IF(Відомостіпрорахунокфактуру[№ рахунка]=ДіапазонНомерівРахунків,ROW(Відомостіпрорахунокфактуру[])-ROW(Відомостіпрорахунокфактуру[#Headers])), ROW(10:10)), MATCH($F$8, Відомостіпрорахунокфактуру[#Headers], 0)),"") -> 0 | G18: 80.00₴
B19: =IFERROR(INDEX(Відомостіпрорахунокфактуру[],SMALL(IF(Відомостіпрорахунокфактуру[№ рахунка]=ДіапазонНомерівРахунків,ROW(Відомостіпрорахунокфактуру[])-ROW(Відомостіпрорахунокфактуру[#Headers])), ROW(11:11)), MATCH($B$8, Відомостіпрорахунокфактуру[#Headers], 0)),"") -> Z4577 | C19: =IFERROR(INDEX(Відомостіпрорахунокфактуру[],SMALL(IF(Відомостіпрорахунокфактуру[№ рахунка]=ДіапазонНомерівРахунків,ROW(Відомостіпрорахунокфактуру[])-ROW(Відомостіпрорахунокфактуру[#Headers])), ROW(11:11)), MATCH($C$8, Відомостіпрорахунокфактуру[#Headers], 0)),"") -> Дані 11 рахунка-фактури 3-456-2 | D19: =IFERROR(INDEX(Відомостіпрорахунокфактуру[],SMALL(IF(Відомостіпрорахунокфактуру[№ рахунка]=ДіапазонНомерівРахунків,ROW(Відомостіпрорахунокфактуру[])-ROW(Відомостіпрорахунокфактуру[#Headers])), ROW(11:11)), MATCH($D$8, Відомостіпрорахунокфактуру[#Headers], 0)),"") -> 65 | E19: =IFERROR(INDEX(Відомостіпрорахунокфактуру[],SMALL(IF(Відомостіпрорахунокфактуру[№ рахунка]=ДіапазонНомерівРахунків,ROW(Відомостіпрорахунокфактуру[])-ROW(Відомостіпрорахунокфактуру[#Headers])), ROW(11:11)), MATCH($E$8, Відомостіпрорахунокфактуру[#Headers], 0)),"") -> 7.00₴ | F19: =IFERROR(INDEX(Відомостіпрорахунокфактуру[],SMALL(IF(Відомостіпрорахунокфактуру[№ рахунка]=ДіапазонНомерівРахунків,ROW(Відомостіпрорахунокфактуру[])-ROW(Відомостіпрорахунокфактуру[#Headers])), ROW(11:11)), MATCH($F$8, Відомостіпрорахунокфактуру[#Headers], 0)),"") -> 0 | G19: 455.00₴
B20: =IFERROR(INDEX(Відомостіпрорахунокфактуру[],SMALL(IF(Відомостіпрорахунокфактуру[№ рахунка]=ДіапазонНомерівРахунків,ROW(Відомостіпрорахунокфактуру[])-ROW(Відомостіпрорахунокфактуру[#Headers])), ROW(12:12)), MATCH($B$8, Відомостіпрорахунокфактуру[#Headers], 0)),"") -> Z4578 | C20: =IFERROR(INDEX(Відомостіпрорахунокфактуру[],SMALL(IF(Відомостіпрорахунокфактуру[№ рахунка]=ДіапазонНомерівРахунків,ROW(Відомостіпрорахунокфактуру[])-ROW(Відомостіпрорахунокфактуру[#Headers])), ROW(12:12)), MATCH($C$8, Відомостіпрорахунокфактуру[#Headers], 0)),"") -> Дані 12 рахунка-фактури 3-456-2 | D20: =IFERROR(INDEX(Відомостіпрорахунокфактуру[],SMALL(IF(Відомостіпрорахунокфактуру[№ рахунка]=ДіапазонНомерівРахунків,ROW(Відомостіпрорахунокфактуру[])-ROW(Відомостіпрорахунокфактуру[#Headers])), ROW(12:12)), MATCH($D$8, Відомостіпрорахунокфактуру[#Headers], 0)),"") -> 44 | E20: =IFERROR(INDEX(Відомостіпрорахунокфактуру[],SMALL(IF(Відомостіпрорахунокфактуру[№ рахунка]=ДіапазонНомерівРахунків,ROW(Відомостіпрорахунокфактуру[])-ROW(Відомостіпрорахунокфактуру[#Headers])), ROW(12:12)), MATCH($E$8, Відомостіпрорахунокфактуру[#Headers], 0)),"") -> 1.00₴ | F20: =IFERROR(INDEX(Відомостіпрорахунокфактуру[],SMALL(IF(Відомостіпрорахунокфактуру[№ рахунка]=ДіапазонНомерівРахунків,ROW(Відомостіпрорахунокфактуру[])-ROW(Відомостіпрорахунокфактуру[#Headers])), ROW(12:12)), MATCH($F$8, Відомостіпрорахунокфактуру[#Headers], 0)),"") -> 0 | G20: 44.00₴
B21: =IFERROR(INDEX(Відомостіпрорахунокфактуру[],SMALL(IF(Відомостіпрорахунокфактуру[№ рахунка]=ДіапазонНомерівРахунків,ROW(Відомостіпрорахунокфактуру[])-ROW(Відомостіпрорахунокфактуру[#Headers])), ROW(13:13)), MATCH($B$8, Відомостіпрорахунокфактуру[#Headers], 0)),"") ->  | C21: =IFERROR(INDEX(Відомостіпрорахунокфактуру[],SMALL(IF(Відомостіпрорахунокфактуру[№ рахунка]=ДіапазонНомерівРахунків,ROW(Відомостіпрорахунокфактуру[])-ROW(Відомостіпрорахунокфактуру[#Headers])), ROW(13:13)), MATCH($C$8, Відомостіпрорахунокфактуру[#Headers], 0)),"") ->  | D21: =IFERROR(INDEX(Відомостіпрорахунокфактуру[],SMALL(IF(Відомостіпрорахунокфактуру[№ рахунка]=ДіапазонНомерівРахунків,ROW(Відомостіпрорахунокфактуру[])-ROW(Відомостіпрорахунокфактуру[#Headers])), ROW(13:13)), MATCH($D$8, Відомостіпрорахунокфактуру[#Headers], 0)),"") ->  | E21: =IFERROR(INDEX(Відомостіпрорахунокфактуру[],SMALL(IF(Відомостіпрорахунокфактуру[№ рахунка]=ДіапазонНомерівРахунків,ROW(Відомостіпрорахунокфактуру[])-ROW(Відомостіпрорахунокфактуру[#Headers])), ROW(13:13)), MATCH($E$8, Відомостіпрорахунокфактуру[#Headers], 0)),"") ->  | F21: =IFERROR(INDEX(Відомостіпрорахунокфактуру[],SMALL(IF(Відомостіпрорахунокфактуру[№ рахунка]=ДіапазонНомерівРахунків,ROW(Відомостіпрорахунокфактуру[])-ROW(Відомостіпрорахунокфактуру[#Headers])), ROW(13:13)), MATCH($F$8, Відомостіпрорахунокфактуру[#Headers], 0)),"") -> 
B22: =IFERROR(INDEX(Відомостіпрорахунокфактуру[],SMALL(IF(Відомостіпрорахунокфактуру[№ рахунка]=ДіапазонНомерівРахунків,ROW(Відомостіпрорахунокфактуру[])-ROW(Відомостіпрорахунокфактуру[#Headers])), ROW(14:14)), MATCH($B$8, Відомостіпрорахунокфактуру[#Headers], 0)),"") ->  | C22: =IFERROR(INDEX(Відомостіпрорахунокфактуру[],SMALL(IF(Відомостіпрорахунокфактуру[№ рахунка]=ДіапазонНомерівРахунків,ROW(Відомостіпрорахунокфактуру[])-ROW(Відомостіпрорахунокфактуру[#Headers])), ROW(14:14)), MATCH($C$8, Відомостіпрорахунокфактуру[#Headers], 0)),"") ->  | D22: =IFERROR(INDEX(Відомостіпрорахунокфактуру[],SMALL(IF(Відомостіпрорахунокфактуру[№ рахунка]=ДіапазонНомерівРахунків,ROW(Відомостіпрорахунокфактуру[])-ROW(Відомостіпрорахунокфактуру[#Headers])), ROW(14:14)), MATCH($D$8, Відомостіпрорахунокфактуру[#Headers], 0)),"") ->  | E22: =IFERROR(INDEX(Відомостіпрорахунокфактуру[],SMALL(IF(Відомостіпрорахунокфактуру[№ рахунка]=ДіапазонНомерівРахунків,ROW(Відомостіпрорахунокфактуру[])-ROW(Відомостіпрорахунокфактуру[#Headers])), ROW(14:14)), MATCH($E$8, Відомостіпрорахунокфактуру[#Headers], 0)),"") ->  | F22: =IFERROR(INDEX(Відомостіпрорахунокфактуру[],SMALL(IF(Відомостіпрорахунокфактуру[№ рахунка]=ДіапазонНомерівРахунків,ROW(Відомостіпрорахунокфактуру[])-ROW(Відомостіпрорахунокфактуру[#Headers])), ROW(14:14)), MATCH($F$8, Відомостіпрорахунокфактуру[#Headers], 0)),"") -> 
B23: =IFERROR(INDEX(Відомостіпрорахунокфактуру[],SMALL(IF(Відомостіпрорахунокфактуру[№ рахунка]=ДіапазонНомерівРахунків,ROW(Відомостіпрорахунокфактуру[])-ROW(Відомостіпрорахунокфактуру[#Headers])), ROW(15:15)), MATCH($B$8, Відомостіпрорахунокфактуру[#Headers], 0)),"") ->  | C23: =IFERROR(INDEX(Відомостіпрорахунокфактуру[],SMALL(IF(Відомостіпрорахунокфактуру[№ рахунка]=ДіапазонНомерівРахунків,ROW(Відомостіпрорахунокфактуру[])-ROW(Відомостіпрорахунокфактуру[#Headers])), ROW(15:15)), MATCH($C$8, Відомостіпрорахунокфактуру[#Headers], 0)),"") ->  | D23: =IFERROR(INDEX(Відомостіпрорахунокфактуру[],SMALL(IF(Відомостіпрорахунокфактуру[№ рахунка]=ДіапазонНомерівРахунків,ROW(Відомостіпрорахунокфактуру[])-ROW(Відомостіпрорахунокфактуру[#Headers])), ROW(15:15)), MATCH($D$8, Відомостіпрорахунокфактуру[#Headers], 0)),"") ->  | E23: =IFERROR(INDEX(Відомостіпрорахунокфактуру[],SMALL(IF(Відомостіпрорахунокфактуру[№ рахунка]=ДіапазонНомерівРахунків,ROW(Відомостіпрорахунокфактуру[])-ROW(Відомостіпрорахунокфактуру[#Headers])), ROW(15:15)), MATCH($E$8, Відомостіпрорахунокфактуру[#Headers], 0)),"") ->  | F23: =IFERROR(INDEX(Відомостіпрорахунокфактуру[],SMALL(IF(Відомостіпрорахунокфактуру[№ рахунка]=ДіапазонНомерівРахунків,ROW(Відомостіпрорахунокфактуру[])-ROW(Відомостіпрорахунокфактуру[#Headers])), ROW(15:15)), MATCH($F$8, Відомостіпрорахунокфактуру[#Headers], 0)),"") -> 
B24: =IFERROR(INDEX(Відомостіпрорахунокфактуру[],SMALL(IF(Відомостіпрорахунокфактуру[№ рахунка]=ДіапазонНомерівРахунків,ROW(Відомостіпрорахунокфактуру[])-ROW(Відомостіпрорахунокфактуру[#Headers])), ROW(16:16)), MATCH($B$8, Відомостіпрорахунокфактуру[#Headers], 0)),"") ->  | C24: =IFERROR(INDEX(Відомостіпрорахунокфактуру[],SMALL(IF(Відомостіпрорахунокфактуру[№ рахунка]=ДіапазонНомерівРахунків,ROW(Відомостіпрорахунокфактуру[])-ROW(Відомостіпрорахунокфактуру[#Headers])), ROW(16:16)), MATCH($C$8, Відомостіпрорахунокфактуру[#Headers], 0)),"") ->  | D24: =IFERROR(INDEX(Відомостіпрорахунокфактуру[],SMALL(IF(Відомостіпрорахунокфактуру[№ рахунка]=ДіапазонНомерівРахунків,ROW(Відомостіпрорахунокфактуру[])-ROW(Відомостіпрорахунокфактуру[#Headers])), ROW(16:16)), MATCH($D$8, Відомостіпрорахунокфактуру[#Headers], 0)),"") ->  | E24: =IFERROR(INDEX(Відомостіпрорахунокфактуру[],SMALL(IF(Відомостіпрорахунокфактуру[№ рахунка]=ДіапазонНомерівРахунків,ROW(Відомостіпрорахунокфактуру[])-ROW(Відомостіпрорахунокфактуру[#Headers])), ROW(16:16)), MATCH($E$8, Відомостіпрорахунокфактуру[#Headers], 0)),"") ->  | F24: =IFERROR(INDEX(Відомостіпрорахунокфактуру[],SMALL(IF(Відомостіпрорахунокфактуру[№ рахунка]=ДіапазонНомерівРахунків,ROW(Відомостіпрорахунокфактуру[])-ROW(Відомостіпрорахунокфактуру[#Headers])), ROW(16:16)), MATCH($F$8, Відомостіпрорахунокфактуру[#Headers], 0)),"") -> 
B25: =IFERROR(INDEX(Відомостіпрорахунокфактуру[],SMALL(IF(Відомостіпрорахунокфактуру[№ рахунка]=ДіапазонНомерівРахунків,ROW(Відомостіпрорахунокфактуру[])-ROW(Відомостіпрорахунокфактуру[#Headers])), ROW(17:17)), MATCH($B$8, Відомостіпрорахунокфактуру[#Headers], 0)),"") ->  | C25: =IFERROR(INDEX(Відомостіпрорахунокфактуру[],SMALL(IF(Відомостіпрорахунокфактуру[№ рахунка]=ДіапазонНомерівРахунків,ROW(Відомостіпрорахунокфактуру[])-ROW(Відомостіпрорахунокфактуру[#Headers])), ROW(17:17)), MATCH($C$8, Відомостіпрорахунокфактуру[#Headers], 0)),"") ->  | D25: =IFERROR(INDEX(Відомостіпрорахунокфактуру[],SMALL(IF(Відомостіпрорахунокфактуру[№ рахунка]=ДіапазонНомерівРахунків,ROW(Відомостіпрорахунокфактуру[])-ROW(Відомостіпрорахунокфактуру[#Headers])), ROW(17:17)), MATCH($D$8, Відомостіпрорахунокфактуру[#Headers], 0)),"") ->  | E25: =IFERROR(INDEX(Відомостіпрорахунокфактуру[],SMALL(IF(Відомостіпрорахунокфактуру[№ рахунка]=ДіапазонНомерівРахунків,ROW(Відомостіпрорахунокфактуру[])-ROW(Відомостіпрорахунокфактуру[#Headers])), ROW(17:17)), MATCH($E$8, Відомостіпрорахунокфактуру[#Headers], 0)),"") ->  | F25: =IFERROR(INDEX(Відомостіпрорахунокфактуру[],SMALL(IF(Відомостіпрорахунокфактуру[№ рахунка]=ДіапазонНомерівРахунків,ROW(Відомостіпрорахунокфактуру[])-ROW(Відомостіпрорахунокфактуру[#Headers])), ROW(17:17)), MATCH($F$8, Відомостіпрорахунокфактуру[#Headers], 0)),"") -> 
B26: =IFERROR(INDEX(Відомостіпрорахунокфактуру[],SMALL(IF(Відомостіпрорахунокфактуру[№ рахунка]=ДіапазонНомерівРахунків,ROW(Відомостіпрорахунокфактуру[])-ROW(Відомостіпрорахунокфактуру[#Headers])), ROW(18:18)), MATCH($B$8, Відомостіпрорахунокфактуру[#Headers], 0)),"") ->  | C26: =IFERROR(INDEX(Відомостіпрорахунокфактуру[],SMALL(IF(Відомостіпрорахунокфактуру[№ рахунка]=ДіапазонНомерівРахунків,ROW(Відомостіпрорахунокфактуру[])-ROW(Відомостіпрорахунокфактуру[#Headers])), ROW(18:18)), MATCH($C$8, Відомостіпрорахунокфактуру[#Headers], 0)),"") ->  | D26: =IFERROR(INDEX(Відомостіпрорахунокфактуру[],SMALL(IF(Відомостіпрорахунокфактуру[№ рахунка]=ДіапазонНомерівРахунків,ROW(Відомостіпрорахунокфактуру[])-ROW(Відомостіпрорахунокфактуру[#Headers])), ROW(18:18)), MATCH($D$8, Відомостіпрорахунокфактуру[#Headers], 0)),"") ->  | E26: =IFERROR(INDEX(Відомостіпрорахунокфактуру[],SMALL(IF(Відомостіпрорахунокфактуру[№ рахунка]=ДіапазонНомерівРахунків,ROW(Відомостіпрорахунокфактуру[])-ROW(Відомостіпрорахунокфактуру[#Headers])), ROW(18:18)), MATCH($E$8, Відомостіпрорахунокфактуру[#Headers], 0)),"") ->  | F26: =IFERROR(INDEX(Відомостіпрорахунокфактуру[],SMALL(IF(Відомостіпрорахунокфактуру[№ рахунка]=ДіапазонНомерівРахунків,ROW(Відомостіпрорахунокфактуру[])-ROW(Відомостіпрорахунокфактуру[#Headers])), ROW(18:18)), MATCH($F$8, Відомостіпрорахунокфактуру[#Headers], 0)),"") -> 
B27: =IFERROR(INDEX(Відомостіпрорахунокфактуру[],SMALL(IF(Відомостіпрорахунокфактуру[№ рахунка]=ДіапазонНомерівРахунків,ROW(Відомостіпрорахунокфактуру[])-ROW(Відомостіпрорахунокфактуру[#Headers])), ROW(19:19)), MATCH($B$8, Відомостіпрорахунокфактуру[#Headers], 0)),"") ->  | C27: =IFERROR(INDEX(Відомостіпрорахунокфактуру[],SMALL(IF(Відомостіпрорахунокфактуру[№ рахунка]=ДіапазонНомерівРахунків,ROW(Відомостіпрорахунокфактуру[])-ROW(Відомостіпрорахунокфактуру[#Headers])), ROW(19:19)), MATCH($C$8, Відомостіпрорахунокфактуру[#Headers], 0)),"") ->  | D27: =IFERROR(INDEX(Відомостіпрорахунокфактуру[],SMALL(IF(Відомостіпрорахунокфактуру[№ рахунка]=ДіапазонНомерівРахунків,ROW(Відомостіпрорахунокфактуру[])-ROW(Відомостіпрорахунокфактуру[#Headers])), ROW(19:19)), MATCH($D$8, Відомостіпрорахунокфактуру[#Headers], 0)),"") ->  | E27: =IFERROR(INDEX(Відомостіпрорахунокфактуру[],SMALL(IF(Відомостіпрорахунокфактуру[№ рахунка]=ДіапазонНомерівРахунків,ROW(Відомостіпрорахунокфактуру[])-ROW(Відомостіпрорахунокфактуру[#Headers])), ROW(19:19)), MATCH($E$8, Відомостіпрорахунокфактуру[#Headers], 0)),"") ->  | F27: =IFERROR(INDEX(Відомостіпрорахунокфактуру[],SMALL(IF(Відомостіпрорахунокфактуру[№ рахунка]=ДіапазонНомерівРахунків,ROW(Відомостіпрорахунокфактуру[])-ROW(Відомостіпрорахунокфактуру[#Headers])), ROW(19:19)), MATCH($F$8, Відомостіпрорахунокфактуру[#Headers], 0)),"") -> 
B28: =IFERROR(INDEX(Відомостіпрорахунокфактуру[],SMALL(IF(Відомостіпрорахунокфактуру[№ рахунка]=ДіапазонНомерівРахунків,ROW(Відомостіпрорахунокфактуру[])-ROW(Відомостіпрорахунокфактуру[#Headers])), ROW(20:20)), MATCH($B$8, Відомостіпрорахунокфактуру[#Headers], 0)),"") ->  | C28: =IFERROR(INDEX(Відомостіпрорахунокфактуру[],SMALL(IF(Відомостіпрорахунокфактуру[№ рахунка]=ДіапазонНомерівРахунків,ROW(Відомостіпрорахунокфактуру[])-ROW(Відомостіпрорахунокфактуру[#Headers])), ROW(20:20)), MATCH($C$8, Відомостіпрорахунокфактуру[#Headers], 0)),"") ->  | D28: =IFERROR(INDEX(Відомостіпрорахунокфактуру[],SMALL(IF(Відомостіпрорахунокфактуру[№ рахунка]=ДіапазонНомерівРахунків,ROW(Відомостіпрорахунокфактуру[])-ROW(Відомостіпрорахунокфактуру[#Headers])), ROW(20:20)), MATCH($D$8, Відомостіпрорахунокфактуру[#Headers], 0)),"") ->  | E28: =IFERROR(INDEX(Відомостіпрорахунокфактуру[],SMALL(IF(Відомостіпрорахунокфактуру[№ рахунка]=ДіапазонНомерівРахунків,ROW(Відомостіпрорахунокфактуру[])-ROW(Відомостіпрорахунокфактуру[#Headers])), ROW(20:20)), MATCH($E$8, Відомостіпрорахунокфактуру[#Headers], 0)),"") ->  | F28: =IFERROR(INDEX(Відомостіпрорахунокфактуру[],SMALL(IF(Відомостіпрорахунокфактуру[№ рахунка]=ДіапазонНомерівРахунків,ROW(Відомостіпрорахунокфактуру[])-ROW(Відомостіпрорахунокфактуру[#Headers])), ROW(20:20)), MATCH($F$8, Відомостіпрорахунокфактуру[#Headers], 0)),"") -> 
B29: =IFERROR(INDEX(Відомостіпрорахунокфактуру[],SMALL(IF(Відомостіпрорахунокфактуру[№ рахунка]=ДіапазонНомерівРахунків,ROW(Відомостіпрорахунокфактуру[])-ROW(Відомостіпрорахунокфактуру[#Headers])), ROW(21:21)), MATCH($B$8, Відомостіпрорахунокфактуру[#Headers], 0)),"") ->  | C29: =IFERROR(INDEX(Відомостіпрорахунокфактуру[],SMALL(IF(Відомостіпрорахунокфактуру[№ рахунка]=ДіапазонНомерівРахунків,ROW(Відомостіпрорахунокфактуру[])-ROW(Відомостіпрорахунокфактуру[#Headers])), ROW(21:21)), MATCH($C$8, Відомостіпрорахунокфактуру[#Headers], 0)),"") ->  | D29: =IFERROR(INDEX(Відомостіпрорахунокфактуру[],SMALL(IF(Відомостіпрорахунокфактуру[№ рахунка]=ДіапазонНомерівРахунків,ROW(Відомостіпрорахунокфактуру[])-ROW(Відомостіпрорахунокфактуру[#Headers])), ROW(21:21)), MATCH($D$8, Відомостіпрорахунокфактуру[#Headers], 0)),"") ->  | E29: =IFERROR(INDEX(Відомостіпрорахунокфактуру[],SMALL(IF(Відомостіпрорахунокфактуру[№ рахунка]=ДіапазонНомерівРахунків,ROW(Відомостіпрорахунокфактуру[])-ROW(Відомостіпрорахунокфактуру[#Headers])), ROW(21:21)), MATCH($E$8, Відомостіпрорахунокфактуру[#Headers], 0)),"") ->  | F29: =IFERROR(INDEX(Відомостіпрорахунокфактуру[],SMALL(IF(Відомостіпрорахунокфактуру[№ рахунка]=ДіапазонНомерівРахунків,ROW(Відомостіпрорахунокфактуру[])-ROW(Відомостіпрорахунокфактуру[#Headers])), ROW(21:21)), MATCH($F$8, Відомостіпрорахунокфактуру[#Headers], 0)),"") -> 
B30: =IFERROR(INDEX(Відомостіпрорахунокфактуру[],SMALL(IF(Відомостіпрорахунокфактуру[№ рахунка]=ДіапазонНомерівРахунків,ROW(Відомостіпрорахунокфактуру[])-ROW(Відомостіпрорахунокфактуру[#Headers])), ROW(22:22)), MATCH($B$8, Відомостіпрорахунокфактуру[#Headers], 0)),"") ->  | C30: =IFERROR(INDEX(Відомостіпрорахунокфактуру[],SMALL(IF(Відомостіпрорахунокфактуру[№ рахунка]=ДіапазонНомерівРахунків,ROW(Відомостіпрорахунокфактуру[])-ROW(Відомостіпрорахунокфактуру[#Headers])), ROW(22:22)), MATCH($C$8, Відомостіпрорахунокфактуру[#Headers], 0)),"") ->  | D30: =IFERROR(INDEX(Відомостіпрорахунокфактуру[],SMALL(IF(Відомостіпрорахунокфактуру[№ рахунка]=ДіапазонНомерівРахунків,ROW(Відомостіпрорахунокфактуру[])-ROW(Відомостіпрорахунокфактуру[#Headers])), ROW(22:22)), MATCH($D$8, Відомостіпрорахунокфактуру[#Headers], 0)),"") ->  | E30: =IFERROR(INDEX(Відомостіпрорахунокфактуру[],SMALL(IF(Відомостіпрорахунокфактуру[№ рахунка]=ДіапазонНомерівРахунків,ROW(Відомостіпрорахунокфактуру[])-ROW(Відомостіпрорахунокфактуру[#Headers])), ROW(22:22)), MATCH($E$8, Відомостіпрорахунокфактуру[#Headers], 0)),"") ->  | F30: =IFERROR(INDEX(Відомостіпрорахунокфактуру[],SMALL(IF(Відомостіпрорахунокфактуру[№ рахунка]=ДіапазонНомерівРахунків,ROW(Відомостіпрорахунокфактуру[])-ROW(Відомостіпрорахунокфактуру[#Headers])), ROW(22:22)), MATCH($F$8, Відомостіпрорахунокфактуру[#Headers], 0)),"") -> 
B31: =IFERROR(INDEX(Відомостіпрорахунокфактуру[],SMALL(IF(Відомостіпрорахунокфактуру[№ рахунка]=ДіапазонНомерівРахунків,ROW(Відомостіпрорахунокфактуру[])-ROW(Відомостіпрорахунокфактуру[#Headers])), ROW(23:23)), MATCH($B$8, Відомостіпрорахунокфактуру[#Headers], 0)),"") ->  | C31: =IFERROR(INDEX(Відомостіпрорахунокфактуру[],SMALL(IF(Відомостіпрорахунокфактуру[№ рахунка]=ДіапазонНомерівРахунків,ROW(Відомостіпрорахунокфактуру[])-ROW(Відомостіпрорахунокфактуру[#Headers])), ROW(23:23)), MATCH($C$8, Відомостіпрорахунокфактуру[#Headers], 0)),"") ->  | D31: =IFERROR(INDEX(Відомостіпрорахунокфактуру[],SMALL(IF(Відомостіпрорахунокфактуру[№ рахунка]=ДіапазонНомерівРахунків,ROW(Відомостіпрорахунокфактуру[])-ROW(Відомостіпрорахунокфактуру[#Headers])), ROW(23:23)), MATCH($D$8, Відомостіпрорахунокфактуру[#Headers], 0)),"") ->  | E31: =IFERROR(INDEX(Відомостіпрорахунокфактуру[],SMALL(IF(Відомостіпрорахунокфактуру[№ рахунка]=ДіапазонНомерівРахунків,ROW(Відомостіпрорахунокфактуру[])-ROW(Відомостіпрорахунокфактуру[#Headers])), ROW(23:23)), MATCH($E$8, Відомостіпрорахунокфактуру[#Headers], 0)),"") ->  | F31: =IFERROR(INDEX(Відомостіпрорахунокфактуру[],SMALL(IF(Відомостіпрорахунокфактуру[№ рахунка]=ДіапазонНомерівРахунків,ROW(Відомостіпрорахунокфактуру[])-ROW(Відомостіпрорахунокфактуру[#Headers])), ROW(23:23)), MATCH($F$8, Відомостіпрорахунокфактуру[#Headers], 0)),"") -> 
B32: =IFERROR(INDEX(Відомостіпрорахунокфактуру[],SMALL(IF(Відомостіпрорахунокфактуру[№ рахунка]=ДіапазонНомерівРахунків,ROW(Відомостіпрорахунокфактуру[])-ROW(Відомостіпрорахунокфактуру[#Headers])), ROW(24:24)), MATCH($B$8, Відомостіпрорахунокфактуру[#Headers], 0)),"") ->  | C32: =IFERROR(INDEX(Відомостіпрорахунокфактуру[],SMALL(IF(Відомостіпрорахунокфактуру[№ рахунка]=ДіапазонНомерівРахунків,ROW(Відомостіпрорахунокфактуру[])-ROW(Відомостіпрорахунокфактуру[#Headers])), ROW(24:24)), MATCH($C$8, Відомостіпрорахунокфактуру[#Headers], 0)),"") ->  | D32: =IFERROR(INDEX(Відомостіпрорахунокфактуру[],SMALL(IF(Відомостіпрорахунокфактуру[№ рахунка]=ДіапазонНомерівРахунків,ROW(Відомостіпрорахунокфактуру[])-ROW(Відомостіпрорахунокфактуру[#Headers])), ROW(24:24)), MATCH($D$8, Відомостіпрорахунокфактуру[#Headers], 0)),"") ->  | E32: =IFERROR(INDEX(Відомостіпрорахунокфактуру[],SMALL(IF(Відомостіпрорахунокфактуру[№ рахунка]=ДіапазонНомерівРахунків,ROW(Відомостіпрорахунокфактуру[])-ROW(Відомостіпрорахунокфактуру[#Headers])), ROW(24:24)), MATCH($E$8, Відомостіпрорахунокфактуру[#Headers], 0)),"") ->  | F32: =IFERROR(INDEX(Відомостіпрорахунокфактуру[],SMALL(IF(Відомостіпрорахунокфактуру[№ рахунка]=ДіапазонНомерівРахунків,ROW(Відомостіпрорахунокфактуру[])-ROW(Відомостіпрорахунокфактуру[#Headers])), ROW(24:24)), MATCH($F$8, Відомостіпрорахунокфактуру[#Headers], 0)),"") -> 
B33: =IFERROR(INDEX(Відомостіпрорахунокфактуру[],SMALL(IF(Відомостіпрорахунокфактуру[№ рахунка]=ДіапазонНомерівРахунків,ROW(Відомостіпрорахунокфактуру[])-ROW(Відомостіпрорахунокфактуру[#Headers])), ROW(25:25)), MATCH($B$8, Відомостіпрорахунокфактуру[#Headers], 0)),"") ->  | C33: =IFERROR(INDEX(Відомостіпрорахунокфактуру[],SMALL(IF(Відомостіпрорахунокфактуру[№ рахунка]=ДіапазонНомерівРахунків,ROW(Відомостіпрорахунокфактуру[])-ROW(Відомостіпрорахунокфактуру[#Headers])), ROW(25:25)), MATCH($C$8, Відомостіпрорахунокфактуру[#Headers], 0)),"") ->  | D33: =IFERROR(INDEX(Відомостіпрорахунокфактуру[],SMALL(IF(Відомостіпрорахунокфактуру[№ рахунка]=ДіапазонНомерівРахунків,ROW(Відомостіпрорахунокфактуру[])-ROW(Відомостіпрорахунокфактуру[#Headers])), ROW(25:25)), MATCH($D$8, Відомостіпрорахунокфактуру[#Headers], 0)),"") ->  | E33: =IFERROR(INDEX(Відомостіпрорахунокфактуру[],SMALL(IF(Відомостіпрорахунокфактуру[№ рахунка]=ДіапазонНомерівРахунків,ROW(Відомостіпрорахунокфактуру[])-ROW(Відомостіпрорахунокфактуру[#Headers])), ROW(25:25)), MATCH($E$8, Відомостіпрорахунокфактуру[#Headers], 0)),"") ->  | F33: =IFERROR(INDEX(Відомостіпрорахунокфактуру[],SMALL(IF(Відомостіпрорахунокфактуру[№ рахунка]=ДіапазонНомерівРахунків,ROW(Відомостіпрорахунокфактуру[])-ROW(Відомостіпрорахунокфактуру[#Headers])), ROW(25:25)), MATCH($F$8, Відомостіпрорахунокфактуру[#Headers], 0)),"") -> 
F34: Проміжний підсумок рахунка | G34: =SUM(РахунокУПроекті[Ціна]) -> 2,014.00₴
F35: Податкова ставка | G35: =VLOOKUP(ДіапазонНомерівРахунків,Рахунки_фактуриОсновний[],5) -> 8.75%
F36: Податок із продажу | G36: =G34*G35 -> 176.23₴
F37: Інше | G37: =VLOOKUP(ДіапазонНомерівРахунків,Рахунки_фактуриОсновний[],6) -> 0
B38: ="Одержувач платежів: "&НазваКомпанії&"." -> Одержувач платежів: Назва компанії. | F38: Отриманий задаток | G38: =VLOOKUP(ДіапазонНомерівРахунків,Рахунки_фактуриОсновний[],7) -> 0
B39: Загальна сума підлягає сплаті протягом <#> дн. На суму простроченої заборгованості нараховується штраф у розмірі <#> % на місяць. | F39: ПІДСУМОК | G39: =(G34+G36+G37)-G38 -> 2,190.23₴

Sheet Клієнти
C2: Клієнти
B3: Підстановка | C3: № компанії | D3: Назва компанії | E3: Ім’я контактної особи | F3: Адреса | G3: Місто | H3: Область | I3: Поштовий індекс | J3: Телефон | K3: Електронна пошта | L3: Факс
B4: =C4& " - "&D4 -> 1 - ТОВ "Товари та послуги" | C4: 1 | D4: ТОВ "Товари та послуги" | E4: Роман Левчук | F4: вул. Дальня, 123 | G4: Тернопіль | H4: Тернопільська обл. | I4: 123456 | J4: (432) 555-01-78 | K4: perevirka@example.com | L4: (432) 555-01-87
B5: 2 - Contoso, Ltd | C5: 2 | D5: Contoso, Ltd | E5: Сергій Паньків | F5: вул. Кутова, 567 | G5: Миколаїв | H5: Миколаївська обл. | I5: 098765 | J5: (432) 555-01-89 | K5: perevirka@example.com | L5: (432) 555-01-23
B6: Підсумки | C6: ="Усього клієнтів: "&SUBTOTAL(103,СписокКлієнтів[№ компанії]) -> Усього клієнтів: 2

Sheet Рахунки-фактури – Основний
B2: Рахунки-фактури
B3: № рахунка | C3: Компанія | D3: Дата виставлення рахунка-фактури | E3: Опис проекту | F3: Податкова ставка | G3: Інше | H3: Задаток | I3: Всього без ПДВ | J3: Всього до сплати | K3: Примітки
B4: 3-456-1 | C4: 1 - ТОВ "Товари та послуги" | D4: =TODAY() -> 4367600.00% | E4: Проект 1 | F4: 8.75% | G4: 100.00₴ | H4: 100.00₴ | I4: =SUMIF(Відомостіпрорахунокфактуру[№ рахунка],"="&Рахунки_фактуриОсновний[[#This Row],[№ рахунка]],Відомостіпрорахунокфактуру[Підсумок]) -> 5,200.00₴ | J4: =(Рахунки_фактуриОсновний[[#This Row],[Всього без ПДВ]]*(1+Рахунки_фактуриОсновний[[#This Row],[Податкова ставка]]))+Рахунки_фактуриОсновний[[#This Row],[Інше]]-Рахунки_фактуриОсновний[[#This Row],[Задаток]] -> 5,655.00₴
B5: 3-456-2 | C5: 2 - Contoso, Ltd | D5: =TODAY()+10 -> 4368600.00% | E5: Проект 2 | F5: 8.75% | I5: =SUMIF(Відомостіпрорахунокфактуру[№ рахунка],"="&Рахунки_фактуриОсновний[[#This Row],[№ рахунка]],Відомостіпрорахунокфактуру[Підсумок]) -> 2,014.00₴ | J5: =(Рахунки_фактуриОсновний[[#This Row],[Всього без ПДВ]]*(1+Рахунки_фактуриОсновний[[#This Row],[Податкова ставка]]))+Рахунки_фактуриОсновний[[#This Row],[Інше]]-Рахунки_фактуриОсновний[[#This Row],[Задаток]] -> 2,190.23₴
B6: Підсумки | C6: ="Загальна сума рахунків: "&SUBTOTAL(103,Рахунки_фактуриОсновний[№ рахунка]) -> Загальна сума рахунків: 2 | G6: =SUBTOTAL(109,Рахунки_фактуриОсновний[Інше]) -> 100.00₴ | H6: =SUBTOTAL(109,Рахунки_фактуриОсновний[Задаток]) -> 100.00₴ | I6: =SUBTOTAL(109,Рахунки_фактуриОсновний[Всього без ПДВ]) -> 7,214.00₴ | J6: =SUBTOTAL(109,Рахунки_фактуриОсновний[Всього до сплати]) -> 7,845.23₴

Sheet Відомості про рахунок-фактуру
B2: Відомості про рахунок-фактуру
B3: Опис | C3: № рахунка | D3: № позиції | E3: К-сть | F3: Ціна за одиницю | G3: Знижка | H3: Підсумок
B4: Дані 1 рахунка-фактури 3-456-1 | C4: 3-456-1 | D4: 1 | E4: 1 | F4: 1.00₴ | G4: 1.00₴ | H4: =(Відомостіпрорахунокфактуру[[#This Row],[К-сть]]*Відомостіпрорахунокфактуру[[#This Row],[Ціна за одиницю]])-Відомостіпрорахунокфактуру[[#This Row],[Знижка]] -> 0.00₴
B5: Дані 2 рахунка-фактури 3-456-1 | C5: 3-456-1 | D5: 2 | E5: 2 | F5: 2.00₴ | G5: 2.00₴ | H5: =(Відомостіпрорахунокфактуру[[#This Row],[К-сть]]*Відомостіпрорахунокфактуру[[#This Row],[Ціна за одиницю]])-Відомостіпрорахунокфактуру[[#This Row],[Знижка]] -> 2.00₴
B6: Дані 3 рахунка-фактури 3-456-1 | C6: 3-456-1 | D6: 3 | E6: 3 | F6: 3.00₴ | G6: 3.00₴ | H6: =(Відомостіпрорахунокфактуру[[#This Row],[К-сть]]*Відомостіпрорахунокфактуру[[#This Row],[Ціна за одиницю]])-Відомостіпрорахунокфактуру[[#This Row],[Знижка]] -> 6.00₴
B7: Дані 4 рахунка-фактури 3-456-1 | C7: 3-456-1 | D7: 4 | E7: 4 | F7: 4.00₴ | G7: 4.00₴ | H7: =(Відомостіпрорахунокфактуру[[#This Row],[К-сть]]*Відомостіпрорахунокфактуру[[#This Row],[Ціна за одиницю]])-Відомостіпрорахунокфактуру[[#This Row],[Знижка]] -> 12.00₴
B8: Дані 5 рахунка-фактури 3-456-1 | C8: 3-456-1 | D8: 5 | E8: 5 | F8: 5.00₴ | G8: 5.00₴ | H8: =(Відомостіпрорахунокфактуру[[#This Row],[К-сть]]*Відомостіпрорахунокфактуру[[#This Row],[Ціна за одиницю]])-Відомостіпрорахунокфактуру[[#This Row],[Знижка]] -> 20.00₴
B9: Дані 6 рахунка-фактури 3-456-1 | C9: 3-456-1 | D9: 6 | E9: 6 | F9: 6.00₴ | G9: 6.00₴ | H9: =(Відомостіпрорахунокфактуру[[#This Row],[К-сть]]*Відомостіпрорахунокфактуру[[#This Row],[Ціна за одиницю]])-Відомостіпрорахунокфактуру[[#This Row],[Знижка]] -> 30.00₴
B10: Дані 7 рахунка-фактури 3-456-1 | C10: 3-456-1 | D10: 7 | E10: 7 | F10: 7.00₴ | G10: 7.00₴ | H10: =(Відомостіпрорахунокфактуру[[#This Row],[К-сть]]*Відомостіпрорахунокфактуру[[#This Row],[Ціна за одиницю]])-Відомостіпрорахунокфактуру[[#This Row],[Знижка]] -> 42.00₴
B11: Дані 8 рахунка-фактури 3-456-1 | C11: 3-456-1 | D11: 8 | E11: 8 | F11: 8.00₴ | G11: 8.00₴ | H11: =(Відомостіпрорахунокфактуру[[#This Row],[К-сть]]*Відомостіпрорахунокфактуру[[#This Row],[Ціна за одиницю]])-Відомостіпрорахунокфактуру[[#This Row],[Знижка]] -> 56.00₴
B12: Дані 9 рахунка-фактури 3-456-1 | C12: 3-456-1 | D12: 9 | E12: 9 | F12: 9.00₴ | G12: 9.00₴ | H12: =(Відомостіпрорахунокфактуру[[#This Row],[К-сть]]*Відомостіпрорахунокфактуру[[#This Row],[Ціна за одиницю]])-Відомостіпрорахунокфактуру[[#This Row],[Знижка]] -> 72.00₴
B13: Дані 10 рахунка-фактури 3-456-1 | C13: 3-456-1 | D13: 10 | E13: 10 | F13: 10.00₴ | G13: 10.00₴ | H13: =(Відомостіпрорахунокфактуру[[#This Row],[К-сть]]*Відомостіпрорахунокфактуру[[#This Row],[Ціна за одиницю]])-Відомостіпрорахунокфактуру[[#This Row],[Знижка]] -> 90.00₴
B14: Дані 11 рахунка-фактури 3-456-1 | C14: 3-456-1 | D14: 11 | E14: 11 | F14: 11.00₴ | G14: 11.00₴ | H14: =(Відомостіпрорахунокфактуру[[#This Row],[К-сть]]*Відомостіпрорахунокфактуру[[#This Row],[Ціна за одиницю]])-Відомостіпрорахунокфактуру[[#This Row],[Знижка]] -> 110.00₴
B15: Дані 12 рахунка-фактури 3-456-1 | C15: 3-456-1 | D15: 12 | E15: 12 | F15: 12.00₴ | G15: 12.00₴ | H15: =(Відомостіпрорахунокфактуру[[#This Row],[К-сть]]*Відомостіпрорахунокфактуру[[#This Row],[Ціна за одиницю]])-Відомостіпрорахунокфактуру[[#This Row],[Знижка]] -> 132.00₴
B16: Дані 13 рахунка-фактури 3-456-1 | C16: 3-456-1 | D16: 13 | E16: 13 | F16: 13.00₴ | G16: 13.00₴ | H16: =(Відомостіпрорахунокфактуру[[#This Row],[К-сть]]*Відомостіпрорахунокфактуру[[#This Row],[Ціна за одиницю]])-Відомостіпрорахунокфактуру[[#This Row],[Знижка]] -> 156.00₴
B17: Дані 14 рахунка-фактури 3-456-1 | C17: 3-456-1 | D17: 14 | E17: 14 | F17: 14.00₴ | G17: 14.00₴ | H17: =(Відомостіпрорахунокфактуру[[#This Row],[К-сть]]*Відомостіпрорахунокфактуру[[#This Row],[Ціна за одиницю]])-Відомостіпрорахунокфактуру[[#This Row],[Знижка]] -> 182.00₴
B18: Дані 15 рахунка-фактури 3-456-1 | C18: 3-456-1 | D18: 15 | E18: 15 | F18: 15.00₴ | G18: 15.00₴ | H18: =(Відомостіпрорахунокфактуру[[#This Row],[К-сть]]*Відомостіпрорахунокфактуру[[#This Row],[Ціна за одиницю]])-Відомостіпрорахунокфактуру[[#This Row],[Знижка]] -> 210.00₴
B19: Дані 16 рахунка-фактури 3-456-1 | C19: 3-456-1 | D19: 16 | E19: 16 | F19: 16.00₴ | G19: 16.00₴ | H19: =(Відомостіпрорахунокфактуру[[#This Row],[К-сть]]*Відомостіпрорахунокфактуру[[#This Row],[Ціна за одиницю]])-Відомостіпрорахунокфактуру[[#This Row],[Знижка]] -> 240.00₴
B20: Дані 17 рахунка-фактури 3-456-1 | C20: 3-456-1 | D20: 17 | E20: 17 | F20: 17.00₴ | G20: 17.00₴ | H20: =(Відомостіпрорахунокфактуру[[#This Row],[К-сть]]*Відомостіпрорахунокфактуру[[#This Row],[Ціна за одиницю]])-Відомостіпрорахунокфактуру[[#This Row],[Знижка]] -> 272.00₴
B21: Дані 18 рахунка-фактури 3-456-1 | C21: 3-456-1 | D21: 18 | E21: 18 | F21: 18.00₴ | G21: 18.00₴ | H21: =(Відомостіпрорахунокфактуру[[#This Row],[К-сть]]*Відомостіпрорахунокфактуру[[#This Row],[Ціна за одиницю]])-Відомостіпрорахунокфактуру[[#This Row],[Знижка]] -> 306.00₴
B22: Дані 19 рахунка-фактури 3-456-1 | C22: 3-456-1 | D22: 19 | E22: 19 | F22: 19.00₴ | G22: 19.00₴ | H22: =(Відомостіпрорахунокфактуру[[#This Row],[К-сть]]*Відомостіпрорахунокфактуру[[#This Row],[Ціна за одиницю]])-Відомостіпрорахунокфактуру[[#This Row],[Знижка]] -> 342.00₴
B23: Дані 20 рахунка-фактури 3-456-1 | C23: 3-456-1 | D23: 20 | E23: 20 | F23: 20.00₴ | G23: 20.00₴ | H23: =(Відомостіпрорахунокфактуру[[#This Row],[К-сть]]*Відомостіпрорахунокфактуру[[#This Row],[Ціна за одиницю]])-Відомостіпрорахунокфактуру[[#This Row],[Знижка]] -> 380.00₴
B24: Дані 21 рахунка-фактури 3-456-1 | C24: 3-456-1 | D24: 21 | E24: 21 | F24: 21.00₴ | G24: 21.00₴ | H24: =(Відомостіпрорахунокфактуру[[#This Row],[К-сть]]*Відомостіпрорахунокфактуру[[#This Row],[Ціна за одиницю]])-Відомостіпрорахунокфактуру[[#This Row],[Знижка]] -> 420.00₴
B25: Дані 22 рахунка-фактури 3-456-1 | C25: 3-456-1 | D25: 22 | E25: 22 | F25: 22.00₴ | G25: 22.00₴ | H25: =(Відомостіпрорахунокфактуру[[#This Row],[К-сть]]*Відомостіпрорахунокфактуру[[#This Row],[Ціна за одиницю]])-Відомостіпрорахунокфактуру[[#This Row],[Знижка]] -> 462.00₴
B26: Дані 23 рахунка-фактури 3-456-1 | C26: 3-456-1 | D26: 23 | E26: 23 | F26: 23.00₴ | G26: 23.00₴ | H26: =(Відомостіпрорахунокфактуру[[#This Row],[К-сть]]*Відомостіпрорахунокфактуру[[#This Row],[Ціна за одиницю]])-Відомостіпрорахунокфактуру[[#This Row],[Знижка]] -> 506.00₴
B27: Дані 24 рахунка-фактури 3-456-1 | C27: 3-456-1 | D27: 24 | E27: 24 | F27: 24.00₴ | G27: 24.00₴ | H27: =(Відомостіпрорахунокфактуру[[#This Row],[К-сть]]*Відомостіпрорахунокфактуру[[#This Row],[Ціна за одиницю]])-Відомостіпрорахунокфактуру[[#This Row],[Знижка]] -> 552.00₴
B28: Дані 25 рахунка-фактури 3-456-1 | C28: 3-456-1 | D28: 25 | E28: 25 | F28: 25.00₴ | G28: 25.00₴ | H28: =(Відомостіпрорахунокфактуру[[#This Row],[К-сть]]*Відомостіпрорахунокфактуру[[#This Row],[Ціна за одиницю]])-Відомостіпрорахунокфактуру[[#This Row],[Знижка]] -> 600.00₴
B29: Дані 1 рахунка-фактури 3-456-2 | C29: 3-456-2 | D29: Z4567 | E29: 39 | F29: 5.00₴ | H29: =(Відомостіпрорахунокфактуру[[#This Row],[К-сть]]*Відомостіпрорахунокфактуру[[#This Row],[Ціна за одиницю]])-Відомостіпрорахунокфактуру[[#This Row],[Знижка]] -> 195.00₴
B30: Дані 2 рахунка-фактури 3-456-2 | C30: 3-456-2 | D30: Z4568 | E30: 40 | F30: 4.00₴ | G30: 5.00₴ | H30: =(Відомостіпрорахунокфактуру[[#This Row],[К-сть]]*Відомостіпрорахунокфактуру[[#This Row],[Ціна за одиницю]])-Відомостіпрорахунокфактуру[[#This Row],[Знижка]] -> 155.00₴
B31: Дані 3 рахунка-фактури 3-456-2 | C31: 3-456-2 | D31: Z4569 | E31: 30 | F31: 6.00₴ | G31: 7.00₴ | H31: =(Відомостіпрорахунокфактуру[[#This Row],[К-сть]]*Відомостіпрорахунокфактуру[[#This Row],[Ціна за одиницю]])-Відомостіпрорахунокфактуру[[#This Row],[Знижка]] -> 173.00₴
B32: Дані 4 рахунка-фактури 3-456-2 | C32: 3-456-2 | D32: Z4570 | E32: 40 | F32: 7.00₴ | H32: =(Відомостіпрорахунокфактуру[[#This Row],[К-сть]]*Відомостіпрорахунокфактуру[[#This Row],[Ціна за одиницю]])-Відомостіпрорахунокфактуру[[#This Row],[Знижка]] -> 280.00₴
B33: Дані 5 рахунка-фактури 3-456-2 | C33: 3-456-2 | D33: Z4571 | E33: 10 | F33: 4.00₴ | H33: =(Відомостіпрорахунокфактуру[[#This Row],[К-сть]]*Відомостіпрорахунокфактуру[[#This Row],[Ціна за одиницю]])-Відомостіпрорахунокфактуру[[#This Row],[Знижка]] -> 40.00₴
B34: Дані 6 рахунка-фактури 3-456-2 | C34: 3-456-2 | D34: Z4572 | E34: 5 | F34: 8.00₴ | H34: =(Відомостіпрорахунокфактуру[[#This Row],[К-сть]]*Відомостіпрорахунокфактуру[[#This Row],[Ціна за одиницю]])-Відомостіпрорахунокфактуру[[#This Row],[Знижка]] -> 40.00₴
B35: Дані 7 рахунка-фактури 3-456-2 | C35: 3-456-2 | D35: Z4573 | E35: 70 | F35: 6.00₴ | H35: =(Відомостіпрорахунокфактуру[[#This Row],[К-сть]]*Відомостіпрорахунокфактуру[[#This Row],[Ціна за одиницю]])-Відомостіпрорахунокфактуру[[#This Row],[Знижка]] -> 420.00₴
B36: Дані 8 рахунка-фактури 3-456-2 | C36: 3-456-2 | D36: Z4574 | E36: 25 | F36: 4.00₴ | H36: =(Відомостіпрорахунокфактуру[[#This Row],[К-сть]]*Відомостіпрорахунокфактуру[[#This Row],[Ціна за одиницю]])-Відомостіпрорахунокфактуру[[#This Row],[Знижка]] -> 100.00₴
B37: Дані 9 рахунка-фактури 3-456-2 | C37: 3-456-2 | D37: Z4575 | E37: 5 | F37: 7.00₴ | G37: 3.00₴ | H37: =(Відомостіпрорахунокфактуру[[#This Row],[К-сть]]*Відомостіпрорахунокфактуру[[#This Row],[Ціна за одиницю]])-Відомостіпрорахунокфактуру[[#This Row],[Знижка]] -> 32.00₴
B38: Дані 10 рахунка-фактури 3-456-2 | C38: 3-456-2 | D38: Z4576 | E38: 80 | F38: 1.00₴ | H38: =(Відомостіпрорахунокфактуру[[#This Row],[К-сть]]*Відомостіпрорахунокфактуру[[#This Row],[Ціна за одиницю]])-Відомостіпрорахунокфактуру[[#This Row],[Знижка]] -> 80.00₴
B39: Дані 11 рахунка-фактури 3-456-2 | C39: 3-456-2 | D39: Z4577 | E39: 65 | F39: 7.00₴ | H39: =(Відомостіпрорахунокфактуру[[#This Row],[К-сть]]*Відомостіпрорахунокфактуру[[#This Row],[Ціна за одиницю]])-Відомостіпрорахунокфактуру[[#This Row],[Знижка]] -> 455.00₴
B40: Дані 12 рахунка-фактури 3-456-2 | C40: 3-456-2 | D40: Z4578 | E40: 44 | F40: 1.00₴ | H40: =(Відомостіпрорахунокфактуру[[#This Row],[К-сть]]*Відомостіпрорахунокфактуру[[#This Row],[Ціна за одиницю]])-Відомостіпрорахунокфактуру[[#This Row],[Знижка]] -> 44.00₴

Sheet Про журнал рахунків-фактур
B1: Про Журнал рахунків-фактур
B4: Журнал рахунків-фактур розроблений для збереження історії клієнтів, рахунків-фактур та відомостей про товари/послуги і дає можливість зберігати багато рахунків-фактур в одному файлі. Крім того, за допомогою цього журналу можна аналізувати відомості про раніше виписані рахунки-фактури. Наприклад, ви можете переглянути всі рахунки-фактури, виставлені певному клієнту чи в межах певного проекту, або відобразити всі рахунки-фактури за останній місяць, останній рік тощо.
B5: Перед початком роботи, ознайомтеся з наданими зразками даних. На аркуші "Рахунок-фактура" виберіть клітинку праворуч від № рахунка-фактури (клітинка L8),щоб відобразити розкривний список. Натисніть стрілку розкривного списку, а потім виберіть зразок рахунка-фактури. Зверніть увагу, що всі дані рахунка-фактури автоматично змінюються відповідно до вибраного рахунка. Тепер погляньте на аркуші "Клієнти", "Рахунки-фактури - основне" та "Відомості про товари/послуги". Інформація для створення рахунка-фактури підтягується з кожного із цих аркушів, забезпечуючи автоматичне оновлення даних при внесенні змін.
B6: Початок роботи
B7: Змініть аркуш "Рахунок-фактура", щоб він відображав відомості про вашу компанію, виконавши наведені нижче дії.
B8: 1. | C8: Перейдіть до аркуша Рахунок-фактура і на вкладці Рецензування в групі Захист виберіть Зняти захист аркуша.
C9: Примітка. Аркуш "Рахунок-фактура" захищено, щоб уникнути ненавмисних змін, оскільки, як згадувалося раніше, більшість даних на цьому аркуші підтягуються з усіх інших аркушів книги.
B10: 2. | C10: Персоналізуйте заголовок рахунка-фактури, ввівши назву компанії, вулицю та номер будинку, місто, область, поштовий індекс, адресу електронної пошти, веб-сайт тощо. У нижній частині рахунка-фактури (рядок 43) змініть платіжні інструкції.
C11: Увага! Не змінюйте відомості про оплату або рахунок-фактуру. Як було зазначено в розділі "Про журнал рахунків-фактур", усі ці клітинки містять формули, які автоматично оновлюють рахунок-фактуру.
B12: 3. | C12: (Необов'язково) Зміна кольорів усієї книги. На вкладці Макет сторінки в групі Теми натисніть Кольори, а потім виберіть інший набір кольорів теми з колекції кольорів.
B13: Порада. Створіть особливий набір кольорів теми, який відповідатиме бренду вашої компанії! Для цього на вкладці Макет сторінки в групі Теми натисніть Кольори, а потім виберіть Настроїти кольори. Щоб отримати додаткові відомості про те, як створити особливий набір кольорів, перегляньте такий розділ довідки:
C14: Настроювання теми документа.
B15: 4. | C15: Після внесення потрібних змін поверніться до аркуша "Рахунок-фактура" і на вкладці "Рецензування" в групі "Зміни" виберіть "Захистити аркуш", а потім натисніть кнопку "ОК". Якщо аркуш "Рахунок-фактура" захищено, єдина клітинка, яку ви можете вибрати, – це клітинка з розкривним списком "№ рахунку-фактури".
B16: Створення рахунка-фактури
B17: 1. | C17: На аркуші "Клієнти" введіть відомості про клієнта, наприклад, назву та адресу компанії. Зверніть увагу, що № компанії – це важливий запис, оскільки він присвоює унікальний ідентифікатор кожній компанії, яка внесена до Журналу рахунків-фактур. Крім того, зверніть увагу, що відомості про компанію потрібно вводити лише один раз. Для подальшого виставлення рахунків тій самій компанії, цей крок можна пропустити.
C18: Примітка. Якщо ви призначите той самий номер кільком компаніям або введете назву однієї компанії кілька разів, ці записи стануть червоними, щоб сповістити вас про повторення.
B19: 2. | C19: На аркуші "Рахунки-фактури - основне" вводяться першочергові відомості про рахунок-фактуру, як-от, № рахунка-фактури, дата виставлення рахунка та опис проекту. Так само, як і № компанії, № рахунка-фактури – це важливий запис, оскільки він присвоює унікальний ідентифікатор кожному рахунку, що внесений до Журналу рахунків-фактур. Інший важливий запис – це назва компанії. Коли ви вибираєте назву компанії з наявного розкривного списку, рахунок-фактура пов'язується з цією компанією. Потім, коли ви вибираєте № рахунку на аркуші "Рахунок-фактура", відомості про компанію, як-от назва компанії та адреса, будуть заповнені автоматично.
C20: Примітка. Якщо ви призначите той самий номер кільком рахункам-фактурам, ці записи стануть червоними, щоб сповістити вас про повторення.
B21: 3. | C21: На аркуші "Відомості про товари/послуги" введіть відомості для виставлення рахунка-фактури, як-от опис товару, № товару, кількість та ціна за одиницю. Щоб спростити введення даних, у розкривну списку клітинки "№ рахунка-фактури" наведено перелік рахунків, введених на аркуші "Рахунки-фактури - основне". Так само, як і № компанії, що було описано вище, № рахунка-фактури пов'язується з певним рахунком-фактурою. При виборі № рахунка на аркуші "Рахунок-фактура" з розкривного списку клітинки "№ рахунка-фактури", будуть відображатися введені позиції товарів/послуг відповідного рахунка-фактури.
C22: Примітка. Максимальна кількість позицій для одного рахунку-фактури – 25. Якщо буде додано понад 25 позицій, усі відповідні записи стануть червоними, щоб сповістити вас про обмеження. При потребі включити до рахунка-фактури понад 25 позицій, необхідно створити другий рахунок.
B23: Додавання клієнтів, рахунків-фактур та відомостей про товари/послуги
B24: Дані про клієнтів, рахунки-фактури і відомості про товари/послуги зберігаються в таблицях Excel. При додаванні нового рядка до таблиці, його буде відформатовано автоматично, а всі обчислення буде скопійовано. Щоб додати нові рядки до таблиці, виконайте одну з наведених нижче дій.
B25: ● | C25: Якщо в таблиці немає рядка підсумків, почніть вводити дані під таблицею і вона автоматично розшириться, коли ви натиснете клавішу Enter або Tab.
B26: ● | C26: Розмістіть курсор в останній клітинці над рядком підсумків (наприклад, у таблиці "Рахунки-фактури" – це клітинка "Примітки" для останнього рахунку) і натисніть клавішу Tab.
B27: ● | C27: На вкладці Основнеу групі Клітинки натисніть Вставити, а потім виберіть пункт Рядок таблиці вище або Рядок таблиці нижче.
B28: ● | C28: Щоб збільшити кількість доступних рядків таблиці, перетягніть униз маркер змінення розміру таблиці в її нижньому правому куті.
B29: Аналіз відомостей про товари/послуги
B30: Як зазначено в розділі "Про журнал рахунків-фактур", ввівши кілька рахунків-фактур, ви зможете переглянути список всіх рахунків, виставлених певному клієнту, в межах проекту чи вказаного інтервалу дат і багато іншого. Цей тип аналізу здійснюється за допомогою фільтру, який дає змогу швидко звузити список даних. Щоб перейти до фільтру для таблиць "Клієнти", "Рахунки-фактури" або "Відомості про товари/послуги", клацніть стрілку розкривного списку поруч з іменем поля таблиці. В області "Фільтр" відобразяться різноманітні параметри фільтрування. Ось кілька прикладів фільтрування, які допоможуть вам почати роботу.
B31: ● | C31: Перегляд загальної суми, на яку виставлено рахунки певному клієнту. На основному аркуші рахунків-фактур, праворуч від поля "№ компанії" натисніть стрілку розкривного списку. В області "Фільтр" натисніть "Виділити все", щоб зняти виділення з усіх компаній. Потім виберіть потрібну компанію і натисніть кнопку "OK".
C32: Порада. В області Фільтртакож можна ввести ім'я клієнта в текстовому полі Пошук, щоб швидко здійснити пошук у наявному списку.
B33: ● | C33: Перегляд усіх рахунків-фактур, виставлених певному клієнту або в межах певних проектів. Почніть із застосування фільтру для бажаного клієнта, виконуючи дії, наведені в попередньому прикладі. Потім праворуч від клітинки "№ проекту" натисніть стрілку розкривного списку. В області "Фільтр" виберіть потрібний проект або проекти, а потім натисніть кнопку "OK".
B34: ● | C34: Перегляд всіх рахунків-фактур за попередній місяць. На аркуші "Рахунки-фактури - основне" праворуч від поля "Дата виставлення рахунка" натисніть стрілку розкривного списку, потім наведіть вказівник миші на пункт "Фільтри дати" і виберіть пункт "Останній місяць".
B35: ● | C35: Перегляд списку всіх клієнтів із однаковим телефонним кодом міста: На аркуші "Клієнти" праворуч від поля "Телефон" натисніть стрілку розкривного списку. В області "Фільтр" клацніть у текстовому полі "Пошук", введіть телефонний код міста, а потім натисніть кнопку OK.
B36: Поради щодо фільтрування
B37: ● | C37: Якщо таблиця містить рядок підсумків, як-от "Клієнти" або "Рахунки-фактури", в обчислених підсумках буде відображено лише відфільтрований список.
B38: ● | C38: Використовуйте кілька фільтрів для одного поля або кількох полів для тонкої настройки результатів.
B39: ● | C39: Щоб видалити один фільтр, натисніть стрілку розкривного списку для попередньо відфільтрованого стовпця, а потім виберіть пункт Видалити фільтр з <ім'я поля>.
B40: ● | C40: Щоб видалити кілька фільтрів одночасно, розмістіть курсор в таблиці, а потім на вкладці Основне в групі Редагування виберіть Сортувати й фільтрувати і натисніть кнопку Очистити.
